[Event "Early-Titled-Tuesday-Blitz-May-14-2024"]
[Site "Chess.com"]
[Date "2024.05.14"]
[Round "4"]
[White "kritipatel"]
[Black "Quattroporte300"]
[Result "0-1"]
[WhiteElo "2174"]
[BlackElo "2392"]
[TimeControl "180+1"]
[EndTime "8:39:10 PDT"]
[Termination "Quattroporte300 won by resignation"]

1. d4 {[%clk 0:03:00.9]} 1... g6 {[%clk 0:02:59.5]} 2. c4 {[%clk 0:03:00]} 2...
Bg7 {[%clk 0:03:00]} 3. Nc3 {[%clk 0:03:00.3]} 3... d6 {[%clk 0:03:00.5]} 4. e4
{[%clk 0:03:00.6]} 4... Nd7 {[%clk 0:03:01.2]} 5. Be3 {[%clk 0:03:00.8]} 5... e5
{[%clk 0:03:01.9]} 6. f4 {[%clk 0:02:53.1]} 6... Ne7 {[%clk 0:02:42.1]} 7. Nf3
{[%clk 0:02:51.3]} 7... O-O {[%clk 0:02:27.7]} 8. Be2 {[%clk 0:02:37]} 8... c5
{[%clk 0:01:57.1]} 9. dxe5 {[%clk 0:02:25.8]} 9... dxe5 {[%clk 0:01:55.6]} 10.
fxe5 {[%clk 0:02:25.2]} 10... Nxe5 {[%clk 0:01:55.6]} 11. Nxe5 {[%clk
0:02:23.9]} 11... Bxe5 {[%clk 0:01:54.2]} 12. Bxc5 {[%clk 0:02:24.2]} 12... Qc7
{[%clk 0:01:42.1]} 13. Bd4 {[%clk 0:02:18.5]} 13... Bxh2 {[%clk 0:01:38.5]} 14.
Qd3 {[%clk 0:01:35.1]} 14... Bg3+ {[%clk 0:01:30.9]} 15. Kd2 {[%clk 0:01:33]}
15... Bf4+ {[%clk 0:01:13.6]} 16. Kc2 {[%clk 0:01:29.9]} 16... f6 {[%clk
0:00:56.4]} 17. Raf1 {[%clk 0:01:10.4]} 17... Be6 {[%clk 0:00:53]} 18. Nd5
{[%clk 0:01:05.4]} 18... Nxd5 {[%clk 0:00:50.4]} 19. g3 {[%clk 0:00:46.8]} 19...
Nb4+ {[%clk 0:00:46.1]} 0-1

[Event "Early-Titled-Tuesday-Blitz-May-14-2024"]
[Site "Chess.com"]
[Date "2024.05.14"]
[Round "4"]
[White "Revan_2002"]
[Black "Artem_Koval"]
[Result "1-0"]
[WhiteElo "2739"]
[BlackElo "2562"]
[TimeControl "180+1"]
[EndTime "8:39:12 PDT"]
[Termination "Revan_2002 won by resignation"]

1. d4 {[%clk 0:03:00.9]} 1... d5 {[%clk 0:03:00]} 2. c4 {[%clk 0:03:00.8]} 2...
e6 {[%clk 0:03:00.5]} 3. Nc3 {[%clk 0:03:01.1]} 3... Nf6 {[%clk 0:03:00.7]} 4.
cxd5 {[%clk 0:03:01.5]} 4... exd5 {[%clk 0:03:00.7]} 5. Bg5 {[%clk 0:03:02.1]}
5... Be7 {[%clk 0:03:01.3]} 6. e3 {[%clk 0:03:02.6]} 6... c6 {[%clk 0:03:01.9]}
7. Bd3 {[%clk 0:03:03]} 7... O-O {[%clk 0:03:01.2]} 8. Nge2 {[%clk 0:03:03.3]}
8... h6 {[%clk 0:03:00.6]} 9. Bh4 {[%clk 0:03:02.6]} 9... Ne4 {[%clk 0:03:00.6]}
10. Bxe7 {[%clk 0:03:01]} 10... Qxe7 {[%clk 0:03:01.5]} 11. Bxe4 {[%clk
0:03:01.6]} 11... dxe4 {[%clk 0:03:01.4]} 12. Ng3 {[%clk 0:03:02.2]} 12... f5
{[%clk 0:03:00.8]} 13. O-O {[%clk 0:03:02.9]} 13... Nd7 {[%clk 0:02:56.4]} 14.
d5 {[%clk 0:03:02.6]} 14... Ne5 {[%clk 0:02:42]} 15. Qd4 {[%clk 0:02:57.6]}
15... cxd5 {[%clk 0:02:28.6]} 16. Nxd5 {[%clk 0:02:56.8]} 16... Qd6 {[%clk
0:02:28]} 17. Rac1 {[%clk 0:02:55.7]} 17... Rf7 {[%clk 0:02:02.6]} 18. Nc7
{[%clk 0:02:38.7]} 18... Qxd4 {[%clk 0:01:52.2]} 19. exd4 {[%clk 0:02:39.6]}
19... Rxc7 {[%clk 0:01:45.4]} 20. Rxc7 {[%clk 0:02:38.7]} 20... Nd3 {[%clk
0:01:45.1]} 21. d5 {[%clk 0:02:34.7]} 21... b6 {[%clk 0:01:34.1]} 22. Nh5 {[%clk
0:02:34.5]} 22... g6 {[%clk 0:01:28.6]} 23. Nf6+ {[%clk 0:02:34.2]} 23... Kf8
{[%clk 0:01:29.3]} 24. d6 {[%clk 0:02:15.6]} 24... Be6 {[%clk 0:01:26.9]} 25.
Rh7 {[%clk 0:02:16.3]} 25... Bg8 {[%clk 0:01:20.1]} 26. Rh8 {[%clk 0:02:14.3]}
26... Kf7 {[%clk 0:01:19.9]} 27. Rxg8 {[%clk 0:02:14.7]} 27... Rxg8 {[%clk
0:01:19.9]} 28. Nxg8 {[%clk 0:02:15.6]} 28... Ke6 {[%clk 0:01:15.9]} 29. Ne7
{[%clk 0:02:09.6]} 29... Kxd6 {[%clk 0:01:15.8]} 30. Nxg6 {[%clk 0:02:10.3]}
30... Nxb2 {[%clk 0:01:13.1]} 31. Nf4 {[%clk 0:02:07.1]} 31... Ke5 {[%clk
0:01:08.5]} 32. g3 {[%clk 0:02:03.5]} 32... Kd4 {[%clk 0:01:08.5]} 33. Rc1
{[%clk 0:02:00.1]} 33... b5 {[%clk 0:00:57]} 34. Rc6 {[%clk 0:01:59.5]} 34... a5
{[%clk 0:00:57.6]} 35. Rxh6 {[%clk 0:01:58.3]} 35... a4 {[%clk 0:00:52.8]} 36.
h4 {[%clk 0:01:58.1]} 36... b4 {[%clk 0:00:52.5]} 37. Ra6 {[%clk 0:01:58.5]}
37... Kc4 {[%clk 0:00:50.7]} 38. h5 {[%clk 0:01:58]} 38... Kb5 {[%clk
0:00:51.1]} 39. Ra8 {[%clk 0:01:57.3]} 39... a3 {[%clk 0:00:52]} 40. h6 {[%clk
0:01:57.1]} 40... Na4 {[%clk 0:00:46.6]} 41. h7 {[%clk 0:01:56.7]} 41... b3
{[%clk 0:00:47]} 42. axb3 {[%clk 0:01:57.6]} 42... a2 {[%clk 0:00:45.4]} 43.
h8=Q {[%clk 0:01:57.8]} 43... e3 {[%clk 0:00:46]} 44. bxa4+ {[%clk 0:01:56.6]}
44... Kb4 {[%clk 0:00:46.2]} 45. fxe3 {[%clk 0:01:56.9]} 45... a1=Q+ {[%clk
0:00:45.8]} 46. Qxa1 {[%clk 0:01:56.7]} 46... Kc4 {[%clk 0:00:46.7]} 47. g4
{[%clk 0:01:55.3]} 47... fxg4 {[%clk 0:00:46.5]} 48. Qd4+ {[%clk 0:01:55.2]}
48... Kb3 {[%clk 0:00:46.2]} 49. Rb8+ {[%clk 0:01:55.8]} 49... Kc2 {[%clk
0:00:45.3]} 50. Rb2+ {[%clk 0:01:54.6]} 1-0

[Event "Early-Titled-Tuesday-Blitz-May-14-2024"]
[Site "Chess.com"]
[Date "2024.05.14"]
[Round "4"]
[White "only_strong_moves"]
[Black "zajka-molotok"]
[Result "1-0"]
[WhiteElo "2714"]
[BlackElo "2547"]
[TimeControl "180+1"]
[EndTime "8:39:16 PDT"]
[Termination "only_strong_moves won by resignation"]

1. Nc3 {[%clk 0:03:00.9]} 1... d5 {[%clk 0:02:58.7]} 2. e4 {[%clk 0:02:59.6]}
2... e6 {[%clk 0:02:58.6]} 3. d4 {[%clk 0:02:59.3]} 3... Nf6 {[%clk 0:02:57.9]}
4. e5 {[%clk 0:02:59.3]} 4... Nfd7 {[%clk 0:02:58.2]} 5. Nce2 {[%clk 0:02:59.9]}
5... c5 {[%clk 0:02:57.1]} 6. c3 {[%clk 0:03:00.6]} 6... Nc6 {[%clk 0:02:55.4]}
7. Nf3 {[%clk 0:03:01]} 7... b5 {[%clk 0:02:52.3]} 8. Nf4 {[%clk 0:03:00.7]}
8... b4 {[%clk 0:02:49.5]} 9. Bd3 {[%clk 0:03:00.3]} 9... a5 {[%clk 0:02:46.5]}
10. O-O {[%clk 0:03:00.1]} 10... Ba6 {[%clk 0:02:45.9]} 11. Ng5 {[%clk
0:02:29.7]} 11... Qxg5 {[%clk 0:02:32]} 12. Nxe6 {[%clk 0:02:29.6]} 12... Qxc1
{[%clk 0:02:05.2]} 13. Nxg7+ {[%clk 0:02:27.2]} 13... Bxg7 {[%clk 0:02:03.3]}
14. Rxc1 {[%clk 0:02:28.1]} 14... Bxd3 {[%clk 0:01:53.6]} 15. Qxd3 {[%clk
0:02:29]} 15... O-O {[%clk 0:01:52.2]} 16. f4 {[%clk 0:02:26.5]} 16... bxc3
{[%clk 0:01:46.7]} 17. bxc3 {[%clk 0:02:25.6]} 17... Rfc8 {[%clk 0:01:28.7]} 18.
f5 {[%clk 0:02:25.1]} 18... Bh6 {[%clk 0:01:27.2]} 19. Rce1 {[%clk 0:02:21.9]}
19... cxd4 {[%clk 0:01:20.8]} 20. cxd4 {[%clk 0:02:22.8]} 20... Nb4 {[%clk
0:01:20.9]} 21. Qg3+ {[%clk 0:02:21.7]} 21... Kh8 {[%clk 0:01:20.3]} 22. e6
{[%clk 0:02:20.8]} 22... Nf6 {[%clk 0:01:15.2]} 23. exf7 {[%clk 0:02:11.9]}
23... Rf8 {[%clk 0:01:08.4]} 24. Re7 {[%clk 0:02:05.1]} 24... Bg7 {[%clk
0:01:05.1]} 25. Qh4 {[%clk 0:01:41.7]} 25... Nc6 {[%clk 0:01:02]} 26. Rc7 {[%clk
0:01:39.9]} 26... Nd8 {[%clk 0:00:54.3]} 27. g4 {[%clk 0:01:38.1]} 27... Nxf7
{[%clk 0:00:49.9]} 28. g5 {[%clk 0:01:38.4]} 28... Ne8 {[%clk 0:00:38.5]} 29.
Rxf7 {[%clk 0:01:32.1]} 29... Rxf7 {[%clk 0:00:37.6]} 30. g6 {[%clk 0:01:32.7]}
30... Bf6 {[%clk 0:00:35.6]} 31. gxf7 {[%clk 0:01:32.3]} 31... Kg7 {[%clk
0:00:25.6]} 32. fxe8=N+ {[%clk 0:01:26.8]} 1-0

[Event "Early-Titled-Tuesday-Blitz-May-14-2024"]
[Site "Chess.com"]
[Date "2024.05.14"]
[Round "4"]
[White "laurenzchess"]
[Black "klercaku"]
[Result "1-0"]
[WhiteElo "2495"]
[BlackElo "2257"]
[TimeControl "180+1"]
[EndTime "8:39:20 PDT"]
[Termination "laurenzchess won on time"]

1. e4 {[%clk 0:02:59.1]} 1... e5 {[%clk 0:03:00.1]} 2. Nf3 {[%clk 0:02:56.5]}
2... Nc6 {[%clk 0:03:00.7]} 3. Bc4 {[%clk 0:02:52.5]} 3... Bc5 {[%clk
0:03:00.4]} 4. c3 {[%clk 0:02:48.3]} 4... Nf6 {[%clk 0:03:00.2]} 5. d4 {[%clk
0:02:44]} 5... exd4 {[%clk 0:03:01.1]} 6. b4 {[%clk 0:02:44.4]} 6... Be7 {[%clk
0:02:41.7]} 7. e5 {[%clk 0:02:34.2]} 7... Ne4 {[%clk 0:02:22.1]} 8. b5 {[%clk
0:02:24]} 8... Na5 {[%clk 0:02:10.2]} 9. Bd5 {[%clk 0:02:24.4]} 9... Nxc3 {[%clk
0:01:53.6]} 10. Nxc3 {[%clk 0:02:23.4]} 10... dxc3 {[%clk 0:01:54]} 11. O-O
{[%clk 0:02:16.3]} 11... O-O {[%clk 0:01:44.7]} 12. Qc2 {[%clk 0:01:58.8]} 12...
c6 {[%clk 0:01:18.1]} 13. Be4 {[%clk 0:01:56.7]} 13... g6 {[%clk 0:01:09.7]} 14.
Bh6 {[%clk 0:01:53.1]} 14... Re8 {[%clk 0:01:06.8]} 15. Rad1 {[%clk 0:01:46.8]}
15... Qc7 {[%clk 0:00:49.7]} 16. Qxc3 {[%clk 0:01:41.1]} 16... Bf8 {[%clk
0:00:37.4]} 17. Bxf8 {[%clk 0:01:32.1]} 17... Rxf8 {[%clk 0:00:36]} 18. Rd6
{[%clk 0:01:29.5]} 18... b6 {[%clk 0:00:25.9]} 19. Ng5 {[%clk 0:01:21.8]} 19...
Nb7 {[%clk 0:00:21.4]} 20. Qh3 {[%clk 0:01:20.5]} 20... h5 {[%clk 0:00:15.7]}
21. Bxg6 {[%clk 0:01:20.7]} 21... Nxd6 {[%clk 0:00:05.4]} 22. Qxh5 {[%clk
0:01:19.9]} 1-0

[Event "Early-Titled-Tuesday-Blitz-May-14-2024"]
[Site "Chess.com"]
[Date "2024.05.14"]
[Round "4"]
[White "Smoking_Crow"]
[Black "Khromkin"]
[Result "0-1"]
[WhiteElo "2575"]
[BlackElo "2396"]
[TimeControl "180+1"]
[EndTime "8:39:22 PDT"]
[Termination "Khromkin won by resignation"]

1. e4 {[%clk 0:03:00.9]} 1... c5 {[%clk 0:02:58.8]} 2. Nf3 {[%clk 0:03:00.4]}
2... Nc6 {[%clk 0:02:58.9]} 3. c3 {[%clk 0:02:59.7]} 3... d5 {[%clk 0:02:58.1]}
4. exd5 {[%clk 0:02:59.3]} 4... Qxd5 {[%clk 0:02:59]} 5. d4 {[%clk 0:03:00.2]}
5... Bg4 {[%clk 0:02:59.1]} 6. Be2 {[%clk 0:03:00.1]} 6... cxd4 {[%clk
0:02:59.1]} 7. cxd4 {[%clk 0:03:00]} 7... e6 {[%clk 0:02:59.8]} 8. Nc3 {[%clk
0:03:00]} 8... Qa5 {[%clk 0:03:00.2]} 9. O-O {[%clk 0:02:59.8]} 9... Nf6 {[%clk
0:02:59.5]} 10. Bd2 {[%clk 0:03:00]} 10... Be7 {[%clk 0:02:44.9]} 11. h3 {[%clk
0:02:57.6]} 11... Bh5 {[%clk 0:02:44.1]} 12. Qb3 {[%clk 0:02:51]} 12... Qb4
{[%clk 0:02:42.5]} 13. Qc2 {[%clk 0:02:48.1]} 13... Bxf3 {[%clk 0:02:33.9]} 14.
Bxf3 {[%clk 0:02:44.8]} 14... Nxd4 {[%clk 0:02:32.8]} 15. Qd3 {[%clk 0:02:45.4]}
15... Rd8 {[%clk 0:02:19.9]} 16. Nd5 {[%clk 0:02:39.3]} 16... Nxf3+ {[%clk
0:01:57.9]} 17. gxf3 {[%clk 0:02:38.7]} 17... Rxd5 {[%clk 0:01:40.6]} 18. Qxd5
{[%clk 0:02:38.4]} 18... Nxd5 {[%clk 0:01:41.1]} 19. Bxb4 {[%clk 0:02:38.3]}
19... Bxb4 {[%clk 0:01:40.6]} 20. Rac1 {[%clk 0:02:35.1]} 20... Ke7 {[%clk
0:01:35.6]} 21. Rfd1 {[%clk 0:02:33.4]} 21... Rd8 {[%clk 0:01:23.1]} 22. Rc4
{[%clk 0:02:32.6]} 22... Bd6 {[%clk 0:01:21.7]} 23. a3 {[%clk 0:02:29.9]} 23...
Kd7 {[%clk 0:01:19.4]} 24. Rh4 {[%clk 0:02:27.6]} 24... h6 {[%clk 0:01:18.6]}
25. Rg4 {[%clk 0:02:27.5]} 25... g5 {[%clk 0:01:18.3]} 26. h4 {[%clk 0:02:27.8]}
26... Bf4 {[%clk 0:01:17.2]} 27. hxg5 {[%clk 0:02:26.3]} 27... hxg5 {[%clk
0:01:17]} 28. Kf1 {[%clk 0:02:20.3]} 28... Rc8 {[%clk 0:01:15.8]} 29. Rg1 {[%clk
0:02:14.2]} 29... Rc2 {[%clk 0:01:14.7]} 30. b4 {[%clk 0:02:13]} 30... Ra2
{[%clk 0:01:12.8]} 31. Rh1 {[%clk 0:02:12.8]} 31... Rxa3 {[%clk 0:01:11.3]} 32.
Kg2 {[%clk 0:02:12.7]} 32... Ra2 {[%clk 0:01:09.7]} 33. Rh8 {[%clk 0:02:10.6]}
33... Ke7 {[%clk 0:01:08.2]} 34. Kg1 {[%clk 0:02:10.8]} 34... Nxb4 {[%clk
0:00:58.7]} 35. Rhd8 {[%clk 0:02:07.6]} 35... Nd5 {[%clk 0:00:57.2]} 36. Ra8
{[%clk 0:02:06.6]} 36... b5 {[%clk 0:00:55.7]} 37. Rb1 {[%clk 0:02:04.7]} 37...
b4 {[%clk 0:00:55.2]} 38. Kg2 {[%clk 0:02:03]} 38... a5 {[%clk 0:00:51.6]} 39.
Ra7+ {[%clk 0:02:02.6]} 39... Kf6 {[%clk 0:00:50.9]} 40. Kg1 {[%clk 0:02:02.6]}
40... a4 {[%clk 0:00:50.1]} 41. Ra6 {[%clk 0:02:02.4]} 41... b3 {[%clk
0:00:49.8]} 42. Rd1 {[%clk 0:02:02.4]} 42... Kf5 {[%clk 0:00:44.1]} 43. Ra5
{[%clk 0:02:01.6]} 43... b2 {[%clk 0:00:41.3]} 44. Rb5 {[%clk 0:02:01.8]} 44...
a3 {[%clk 0:00:37.7]} 45. Rd3 {[%clk 0:01:58.6]} 45... Ra1+ {[%clk 0:00:36.8]}
0-1

[Event "Early-Titled-Tuesday-Blitz-May-14-2024"]
[Site "Chess.com"]
[Date "2024.05.14"]
[Round "4"]
[White "CaspiIsrael"]
[Black "A4RookA3"]
[Result "1-0"]
[WhiteElo "2611"]
[BlackElo "2429"]
[TimeControl "180+1"]
[EndTime "8:39:24 PDT"]
[Termination "CaspiIsrael won by checkmate"]

1. e4 {[%clk 0:03:00.9]} 1... c6 {[%clk 0:02:18.3]} 2. d4 {[%clk 0:03:00.2]}
2... d5 {[%clk 0:02:19.2]} 3. e5 {[%clk 0:02:59.3]} 3... Bf5 {[%clk 0:02:19.3]}
4. Nf3 {[%clk 0:02:58.4]} 4... e6 {[%clk 0:02:19.6]} 5. Be2 {[%clk 0:02:59]}
5... c5 {[%clk 0:02:19.7]} 6. c4 {[%clk 0:02:58.9]} 6... dxc4 {[%clk 0:02:11.3]}
7. O-O {[%clk 0:02:58.5]} 7... Nc6 {[%clk 0:02:10.8]} 8. Na3 {[%clk 0:02:57.2]}
8... cxd4 {[%clk 0:02:07.5]} 9. Nxc4 {[%clk 0:02:57.1]} 9... Bc5 {[%clk
0:02:06.3]} 10. Bd3 {[%clk 0:02:52]} 10... Nge7 {[%clk 0:02:03.7]} 11. a3 {[%clk
0:02:51.6]} 11... a5 {[%clk 0:01:51.2]} 12. Bg5 {[%clk 0:02:45.5]} 12... Bxd3
{[%clk 0:01:32.9]} 13. Qxd3 {[%clk 0:02:45.1]} 13... O-O {[%clk 0:01:29.7]} 14.
Rfd1 {[%clk 0:02:43.6]} 14... Qd5 {[%clk 0:01:22.6]} 15. Rac1 {[%clk 0:02:41.4]}
15... h6 {[%clk 0:00:49.4]} 16. Bxe7 {[%clk 0:02:29]} 16... Nxe7 {[%clk
0:00:50.3]} 17. Qb3 {[%clk 0:02:27.9]} 17... a4 {[%clk 0:00:19.7]} 18. Qc2
{[%clk 0:02:16.4]} 18... Rac8 {[%clk 0:00:18.1]} 19. Qxa4 {[%clk 0:02:14.8]}
19... d3 {[%clk 0:00:11.6]} 20. Qb3 {[%clk 0:02:06.6]} 20... b5 {[%clk
0:00:11.7]} 21. Na5 {[%clk 0:02:05.7]} 21... Rfd8 {[%clk 0:00:09.2]} 22. Qxd5
{[%clk 0:02:01]} 22... Rxd5 {[%clk 0:00:10.1]} 23. Kf1 {[%clk 0:01:54.5]} 23...
Bb6 {[%clk 0:00:07.5]} 24. Rxc8+ {[%clk 0:01:53.3]} 24... Nxc8 {[%clk
0:00:08.4]} 25. Nc6 {[%clk 0:01:53.4]} 25... Kf8 {[%clk 0:00:04.2]} 26. Nb4
{[%clk 0:01:53.4]} 26... Rc5 {[%clk 0:00:03.1]} 27. Rxd3 {[%clk 0:01:50.2]}
27... Ke7 {[%clk 0:00:02.2]} 28. Ke2 {[%clk 0:01:48.5]} 28... Na7 {[%clk
0:00:02.6]} 29. g3 {[%clk 0:01:44.2]} 29... Nc6 {[%clk 0:00:03.1]} 30. Nxc6+
{[%clk 0:01:44.3]} 30... Rxc6 {[%clk 0:00:04]} 31. Rd2 {[%clk 0:01:44.1]} 31...
Rc5 {[%clk 0:00:03.3]} 32. h4 {[%clk 0:01:43.9]} 32... Ba5 {[%clk 0:00:03.1]}
33. b4 {[%clk 0:01:43.7]} 33... Rc3 {[%clk 0:00:03.7]} 34. bxa5 {[%clk 0:01:43]}
34... Rxa3 {[%clk 0:00:04.6]} 35. Nd4 {[%clk 0:01:42.1]} 35... Rxa5 {[%clk
0:00:04.9]} 36. Nc6+ {[%clk 0:01:42.4]} 36... Ke8 {[%clk 0:00:05.8]} 37. Rd8#
{[%clk 0:01:42.1]} 1-0

[Event "Early-Titled-Tuesday-Blitz-May-14-2024"]
[Site "Chess.com"]
[Date "2024.05.14"]
[Round "4"]
[White "Semetey"]
[Black "lamomiajunior"]
[Result "0-1"]
[WhiteElo "2583"]
[BlackElo "2773"]
[TimeControl "180+1"]
[EndTime "8:39:30 PDT"]
[Termination "lamomiajunior won on time"]

1. Nc3 {[%clk 0:02:56.9]} 1... d5 {[%clk 0:02:58.9]} 2. e4 {[%clk 0:02:55.1]}
2... dxe4 {[%clk 0:02:58.4]} 3. Nxe4 {[%clk 0:02:53.7]} 3... c6 {[%clk
0:02:56.7]} 4. Nf3 {[%clk 0:02:51.6]} 4... Nf6 {[%clk 0:02:56]} 5. Ng3 {[%clk
0:02:49.6]} 5... h5 {[%clk 0:02:55.6]} 6. h4 {[%clk 0:02:47.1]} 6... Bg4 {[%clk
0:02:55.3]} 7. Be2 {[%clk 0:02:47.1]} 7... e6 {[%clk 0:02:55.4]} 8. d4 {[%clk
0:02:46.9]} 8... Bd6 {[%clk 0:02:54.1]} 9. Bg5 {[%clk 0:02:45.1]} 9... Nbd7
{[%clk 0:02:49.8]} 10. c3 {[%clk 0:02:41.2]} 10... Qc7 {[%clk 0:02:46.6]} 11.
Nf1 {[%clk 0:02:40.3]} 11... O-O-O {[%clk 0:02:42.7]} 12. Qa4 {[%clk 0:02:35.9]}
12... Kb8 {[%clk 0:02:42.3]} 13. Ne3 {[%clk 0:02:34.7]} 13... Rde8 {[%clk
0:02:42.2]} 14. Nc4 {[%clk 0:02:01]} 14... Bf4 {[%clk 0:02:30.7]} 15. Qb4 {[%clk
0:01:52.2]} 15... Nd5 {[%clk 0:02:22.6]} 16. Qb3 {[%clk 0:01:50.8]} 16... Bxg5
{[%clk 0:02:16.7]} 17. Nxg5 {[%clk 0:01:27.2]} 17... Bxe2 {[%clk 0:02:14.3]} 18.
Kxe2 {[%clk 0:01:20]} 18... e5 {[%clk 0:02:14.8]} 19. Kf1 {[%clk 0:01:12.9]}
19... exd4 {[%clk 0:02:13.2]} 20. cxd4 {[%clk 0:01:13.8]} 20... f6 {[%clk
0:02:10.3]} 21. Nf7 {[%clk 0:01:12.4]} 21... Rhf8 {[%clk 0:02:09.6]} 22. Nfd6
{[%clk 0:01:12.3]} 22... Re6 {[%clk 0:02:09.9]} 23. Nf5 {[%clk 0:01:07.9]} 23...
g6 {[%clk 0:02:06.9]} 24. Nfe3 {[%clk 0:01:05.9]} 24... Nxe3+ {[%clk 0:02:05.6]}
25. Nxe3 {[%clk 0:01:06.8]} 25... Rfe8 {[%clk 0:02:05.6]} 26. g3 {[%clk
0:01:02.8]} 26... f5 {[%clk 0:02:04.4]} 27. Ng2 {[%clk 0:00:56.6]} 27... Re4
{[%clk 0:02:00.3]} 28. Rd1 {[%clk 0:00:54.7]} 28... Nf6 {[%clk 0:01:57.5]} 29.
Ne1 {[%clk 0:00:48]} 29... Ng4 {[%clk 0:01:56.4]} 30. Kg2 {[%clk 0:00:44.1]}
30... Re2 {[%clk 0:01:54.2]} 31. Nd3 {[%clk 0:00:44]} 31... Ne3+ {[%clk
0:01:53.5]} 32. Kh3 {[%clk 0:00:41.2]} 32... Nxd1 {[%clk 0:01:53.3]} 33. Rxd1
{[%clk 0:00:41.9]} 33... f4 {[%clk 0:01:49.9]} 34. Nxf4 {[%clk 0:00:37.8]} 34...
Rxf2 {[%clk 0:01:50]} 35. d5 {[%clk 0:00:30.1]} 35... Qd7+ {[%clk 0:01:47.3]}
36. Ne6 {[%clk 0:00:29.8]} 36... cxd5 {[%clk 0:01:47.7]} 0-1

[Event "Early-Titled-Tuesday-Blitz-May-14-2024"]
[Site "Chess.com"]
[Date "2024.05.14"]
[Round "4"]
[White "Perecke"]
[Black "PapaieDudu"]
[Result "1-0"]
[WhiteElo "2569"]
[BlackElo "2375"]
[TimeControl "180+1"]
[EndTime "8:39:31 PDT"]
[Termination "Perecke won by resignation"]

1. e4 {[%clk 0:03:00.9]} 1... c5 {[%clk 0:03:00.3]} 2. Nf3 {[%clk 0:03:01.1]}
2... d6 {[%clk 0:02:58.6]} 3. d4 {[%clk 0:03:01.2]} 3... cxd4 {[%clk 0:02:59.5]}
4. Nxd4 {[%clk 0:03:01.8]} 4... Nf6 {[%clk 0:03:00.2]} 5. Nc3 {[%clk 0:03:02.2]}
5... a6 {[%clk 0:03:00.9]} 6. h3 {[%clk 0:03:01.4]} 6... b5 {[%clk 0:03:00.3]}
7. g4 {[%clk 0:03:01.3]} 7... Bb7 {[%clk 0:02:59.3]} 8. Bg2 {[%clk 0:03:01.2]}
8... h6 {[%clk 0:02:59.1]} 9. O-O {[%clk 0:03:00.8]} 9... e6 {[%clk 0:02:58.3]}
10. Re1 {[%clk 0:03:00.9]} 10... Be7 {[%clk 0:02:57.9]} 11. f4 {[%clk
0:02:36.5]} 11... O-O {[%clk 0:02:52.4]} 12. g5 {[%clk 0:02:35.6]} 12... hxg5
{[%clk 0:02:51.5]} 13. fxg5 {[%clk 0:02:36.5]} 13... Nfd7 {[%clk 0:02:51.4]} 14.
g6 {[%clk 0:02:30]} 14... Bh4 {[%clk 0:01:36.5]} 15. Rf1 {[%clk 0:02:14.8]}
15... Ne5 {[%clk 0:01:18.8]} 16. gxf7+ {[%clk 0:02:11.7]} 16... Rxf7 {[%clk
0:01:19.4]} 17. Rxf7 {[%clk 0:02:10.1]} 17... Kxf7 {[%clk 0:01:19.6]} 18. Qh5+
{[%clk 0:02:10.3]} 18... Ng6 {[%clk 0:01:16.3]} 19. Nxe6 {[%clk 0:02:05.5]}
19... Qf6 {[%clk 0:00:43.3]} 20. Ng5+ {[%clk 0:01:59.4]} 20... Ke7 {[%clk
0:00:43.4]} 21. Nf3 {[%clk 0:01:53.2]} 21... Kd7 {[%clk 0:00:16.5]} 22. Nd5
{[%clk 0:01:50.6]} 22... Bxd5 {[%clk 0:00:16.2]} 23. exd5 {[%clk 0:01:51.5]}
23... Bg3 {[%clk 0:00:12.7]} 24. Qg4+ {[%clk 0:01:48.8]} 24... Kc7 {[%clk
0:00:11.7]} 25. Qxg3 {[%clk 0:01:49.7]} 25... Nd7 {[%clk 0:00:11.9]} 26. c3
{[%clk 0:01:44.5]} 26... Rf8 {[%clk 0:00:10.5]} 27. Bg5 {[%clk 0:01:44.4]} 27...
Qf5 {[%clk 0:00:09.8]} 28. Re1 {[%clk 0:01:44.1]} 28... Nc5 {[%clk 0:00:09]} 29.
Nd4 {[%clk 0:01:42.6]} 29... Qd7 {[%clk 0:00:08.5]} 30. b4 {[%clk 0:01:40.9]}
30... Na4 {[%clk 0:00:07.5]} 31. Ne6+ {[%clk 0:01:41]} 31... Kb7 {[%clk
0:00:06.9]} 32. Qd3 {[%clk 0:01:35.4]} 32... Nb6 {[%clk 0:00:06.1]} 33. Qxg6
{[%clk 0:01:35.2]} 33... Rf7 {[%clk 0:00:06.1]} 34. Qxf7 {[%clk 0:01:34.6]}
34... Qxf7 {[%clk 0:00:05.8]} 35. Nd8+ {[%clk 0:01:35.3]} 35... Ka7 {[%clk
0:00:05.7]} 36. Nxf7 {[%clk 0:01:36.2]} 1-0